[Event "2026 European Womens Championship"]
[Site "Batumi, GE"]
[Date "2026.06.01"]
[Round "7"]
[White "Nadanyan, Kiti"]
[Black "Kochavi, Dana"]
[Result "1-0"]
[Board "112"]
[TimeControl "5400+30"]
[WhiteFideId "13316710"]
[BlackFideId "2837137"]
[WhiteElo "1801"]
[BlackElo "2209"]
[BlackTitle "FM"]
[WhiteClock "1:02:19"]
[BlackClock "0:05:07"]
[Variant "Standard"]

1. e4 {[%clk 1:30:57]}  c5 {[%clk 1:30:56]} 2. Nc3 {[%clk 1:31:08]}  Nc6 {[%clk 1:31:10]} 3. g3 {[%clk 1:31:06]}  g6 {[%clk 1:31:34]}
4. Bg2 {[%clk 1:31:31]}  Bg7 {[%clk 1:32:00]} 5. d3 {[%clk 1:31:13]}  e6 {[%clk 1:32:08]} 6. Be3 {[%clk 1:30:30]}  d6 {[%clk 1:32:33]}
7. Qd2 {[%clk 1:29:52]}  Rb8 {[%clk 1:32:34]} 8. a4 {[%clk 1:29:16]}  a6 {[%clk 1:32:51]} 9. Nge2 {[%clk 1:28:36]}  Nd4 {[%clk 1:27:54]}
10. Nd1 {[%clk 1:24:01]}  b6 {[%clk 1:25:10]} 11. Nc1 {[%clk 1:21:37]}  e5 {[%clk 1:20:31]} 12. c3 {[%clk 1:18:05]}  Nc6 {[%clk 1:20:55]}
13. Ne2 {[%clk 1:16:55]}  Na5 {[%clk 1:21:07]} 14. Nc1 {[%clk 0:58:12]}  Nc6 {[%clk 1:15:51]} 15. Ne2 {[%clk 0:53:49]}  Be6 {[%clk 1:15:57]}
16. d4 {[%clk 0:39:38]}  Na5 {[%clk 1:08:48]} 17. d5 {[%clk 0:35:58]}  Nc4 {[%clk 1:07:39]} 18. Qd3 {[%clk 0:34:43]}  Nxe3 {[%clk 1:08:02]}
19. Nxe3 {[%clk 0:23:50]}  Bc8 {[%clk 1:06:07]} 20. O-O {[%clk 0:22:42]}  h5 {[%clk 1:03:18]} 21. f4 {[%clk 0:15:56]}  h4 {[%clk 1:03:22]}
22. fxe5 {[%clk 0:15:45]}  Bxe5 {[%clk 1:03:44]} 23. Nc4 {[%clk 0:15:21]}  Bg7 {[%clk 1:00:44]} 24. Qf3 {[%clk 0:15:08]}  Qe7 {[%clk 0:59:47]}
25. Nxd6+ {[%clk 0:13:43]}  Kd7 {[%clk 0:59:13]} 26. Nxc8 {[%clk 0:12:05]}  Kxc8 {[%clk 0:59:25]} 27. Qxf7 {[%clk 0:12:19]}  hxg3 {[%clk 0:58:56]}
28. Nxg3 {[%clk 0:10:42]}  Rb7 {[%clk 0:58:54]} 29. Bh3+ {[%clk 0:05:40]}  Kd8 {[%clk 0:57:51]} 30. Qxe7+ {[%clk 0:05:17]}  Rxe7 {[%clk 0:56:51]}
31. Be6 {[%clk 0:05:40]}  Nf6 {[%clk 0:57:42]} 32. Rae1 {[%clk 0:04:13]}  Nd7 {[%clk 0:57:57]} 33. Bg4 {[%clk 0:01:21]}  Ne5 {[%clk 0:58:23]}
34. Be2 {[%clk 0:01:47]}  c4 {[%clk 0:58:23]} 35. Kg2 {[%clk 0:01:41]}  Kc7 {[%clk 0:58:23]} 36. Rf2 {[%clk 0:01:27]}  Bh6 {[%clk 0:57:32]}
37. Rf6 {[%clk 0:01:45]}  Reh7 {[%clk 0:53:28]} 38. Rh1 {[%clk 0:00:32]}  Bf8 {[%clk 0:52:34]} 39. h3 {[%clk 0:00:32]}  Bd6 {[%clk 0:52:32]}
40. Nf1 {[%clk 0:00:32]}  b5 {[%clk 0:51:56]} 41. Nd2 {[%clk 0:26:04]}  g5 {[%clk 1:22:01]} 42. Rff1 {[%clk 0:14:16]}  Ng6 {[%clk 1:22:07]}
43. Bg4 {[%clk 0:13:30]}  Nf4+ {[%clk 1:21:43]} 44. Kf3 {[%clk 0:10:22]}  Nd3 {[%clk 1:20:48]} 45. Ke2 {[%clk 0:06:16]}  Nxb2 {[%clk 1:20:35]}
46. axb5 {[%clk 0:06:41]}  axb5 {[%clk 1:21:00]} 47. Ra1 {[%clk 0:06:31]}  Na4 {[%clk 1:21:09]} 48. Nxc4 {[%clk 0:02:55]}  Nxc3+ {[%clk 1:21:15]}
49. Kd3 {[%clk 0:03:24]}  Bb4 {[%clk 1:05:56]} 50. Ra7+ {[%clk 0:01:22]}  Kb8 {[%clk 1:06:21]} 51. Rxh7 {[%clk 0:01:50]}  Rxh7 {[%clk 1:06:45]}
52. Ne5 {[%clk 0:02:11]}  Kc7 {[%clk 1:06:29]} 53. Nc6 {[%clk 0:02:27]}  Nxd5 {[%clk 1:05:14]} 54. exd5 {[%clk 0:02:54]}  Bc5 {[%clk 1:05:29]}
55. Nd4 {[%clk 0:03:07]}  Kd6 {[%clk 1:05:12]} 56. Be6 {[%clk 0:01:41]}  Bxd4 {[%clk 1:04:35]} 57. Kxd4 {[%clk 0:02:08]}  Rc7 {[%clk 1:04:16]}
58. Rg1 {[%clk 0:02:11]}  b4 {[%clk 1:03:46]} 59. Rxg5 {[%clk 0:01:22]}  b3 {[%clk 1:04:10]} 60. Rg1 {[%clk 0:00:58]}  b2 {[%clk 1:02:25]}
61. Rb1 {[%clk 0:01:25]}  Rc2 {[%clk 1:02:39]} 62. Kd3 {[%clk 0:01:43]}  Rg2 {[%clk 1:03:02]} 63. Kc3 {[%clk 0:02:00]}  Kc5 {[%clk 1:02:03]}
64. Rxb2 {[%clk 0:01:55]}  Rg3+ {[%clk 1:01:30]} 65. Kc2 {[%clk 0:02:21]}  Rf3 {[%clk 1:01:40]} 66. Rb3 {[%clk 0:02:37]}  Rf2+ {[%clk 1:02:01]}
67. Kd1 {[%clk 0:02:56]}  Rh2 {[%clk 1:01:31]} 68. Ke1 {[%clk 0:03:15]}  Rc2 {[%clk 0:59:53]} 69. Kf1 {[%clk 0:02:51]}  Rc1+ {[%clk 0:59:45]}
70. Kg2 {[%clk 0:03:15]}  Kd6 {[%clk 0:59:52]} 71. Re3 {[%clk 0:03:32]}  Ra1 {[%clk 0:59:39]} 72. h4 {[%clk 0:03:43]}  Ra4 {[%clk 0:59:43]}
73. Kg3 {[%clk 0:04:06]}  Rd4 {[%clk 1:00:06]} 74. h5 {[%clk 0:04:17]}  Ke7 {[%clk 1:00:30]} 75. Rf3 {[%clk 0:04:30]}  Rd1 {[%clk 1:00:43]}
76. Kh4 {[%clk 0:03:25]}  Rh1+ {[%clk 1:01:00]} 77. Kg5 {[%clk 0:03:52]}  Rg1+ {[%clk 1:01:24]} 78. Kh6 {[%clk 0:03:40]}  Rg2 {[%clk 1:01:15]}
79. Kh7 {[%clk 0:04:04]}  Rg5 {[%clk 1:01:32]} 80. h6 {[%clk 0:04:18]}  Rg2 {[%clk 1:01:46]} 81. Kh8 {[%clk 0:04:26]}  Rg5 {[%clk 1:02:07]}
82. h7 {[%clk 0:04:52]}  Rg6 {[%clk 1:02:29]} 83. Rf7+ {[%clk 0:04:58]}  Kd6 {[%clk 1:02:07]} 84. Rg7 {[%clk 0:05:00]}  Rf6 {[%clk 1:02:19]}
85. Kg8 {[%clk 0:05:07]} 1-0

[Event "2026 European Womens Championship"]
[Site "Batumi, GE"]
[Date "2026.06.01"]
[Round "7"]
[White "Starosta, Martyna"]
[Black "Rusitashvili, Tea"]
[Result "1-0"]
[Board "113"]
[TimeControl "5400+30"]
[WhiteFideId "21818754"]
[BlackFideId "13640771"]
[WhiteElo "2175"]
[BlackElo "1929"]
[WhiteTitle "WIM"]
[BlackTitle "WCM"]
[WhiteClock "0:12:13"]
[BlackClock "0:14:50"]
[Variant "Standard"]

1. e4 {[%clk 1:30:55]}  c5 {[%clk 1:30:52]} 2. Nf3 {[%clk 1:31:20]}  Nc6 {[%clk 1:31:16]} 3. Bb5 {[%clk 1:31:47]}  g6 {[%clk 1:31:35]}
4. O-O {[%clk 1:31:50]}  Bg7 {[%clk 1:31:48]} 5. c3 {[%clk 1:31:34]}  Nf6 {[%clk 1:30:37]} 6. Re1 {[%clk 1:31:23]}  O-O {[%clk 1:29:36]}
7. d4 {[%clk 1:30:39]}  d5 {[%clk 1:27:10]} 8. e5 {[%clk 1:30:50]}  Ne4 {[%clk 1:27:29]} 9. Be3 {[%clk 1:30:19]}  cxd4 {[%clk 1:24:51]}
10. cxd4 {[%clk 1:30:04]}  Qb6 {[%clk 1:19:57]} 11. Bxc6 {[%clk 1:30:19]}  bxc6 {[%clk 1:18:42]} 12. Qc1 {[%clk 1:30:39]}  f6 {[%clk 1:14:53]}
13. Nc3 {[%clk 1:26:19]}  Nxc3 {[%clk 1:07:09]} 14. Qxc3 {[%clk 1:26:40]}  Bg4 {[%clk 1:04:30]} 15. Nd2 {[%clk 1:25:32]}  Rab8 {[%clk 0:59:49]}
16. Nb3 {[%clk 1:22:53]}  fxe5 {[%clk 0:54:59]} 17. dxe5 {[%clk 1:22:41]}  Qc7 {[%clk 0:51:11]} 18. Bd4 {[%clk 1:20:46]}  Bf5 {[%clk 0:44:05]}
19. Nc5 {[%clk 1:15:57]}  Qc8 {[%clk 0:43:08]} 20. e6 {[%clk 1:04:33]}  Bxd4 {[%clk 0:37:32]} 21. Qxd4 {[%clk 1:04:54]}  Rd8 {[%clk 0:34:43]}
22. Rac1 {[%clk 0:53:22]}  Rd6 {[%clk 0:30:12]} 23. Re3 {[%clk 0:46:11]}  a5 {[%clk 0:26:11]} 24. a3 {[%clk 0:46:23]}  Bxe6 {[%clk 0:22:35]}
25. Rce1 {[%clk 0:45:46]}  Bf7 {[%clk 0:22:16]} 26. Rxe7 {[%clk 0:45:43]}  Qf5 {[%clk 0:21:56]} 27. g4 {[%clk 0:37:22]}  Qg5 {[%clk 0:11:41]}
28. h4 {[%clk 0:34:42]}  Qh6 {[%clk 0:08:35]} 29. g5 {[%clk 0:33:13]}  Qg7 {[%clk 0:08:21]} 30. Qf4 {[%clk 0:33:02]}  Rbd8 {[%clk 0:06:36]}
31. Nb7 {[%clk 0:26:25]}  R6d7 {[%clk 0:06:46]} 32. Nxd8 {[%clk 0:26:07]}  Rxd8 {[%clk 0:07:15]} 33. Qc7 {[%clk 0:25:37]}  Rf8 {[%clk 0:07:24]}
34. R1e5 {[%clk 0:22:36]}  h6 {[%clk 0:05:26]} 35. Qxc6 {[%clk 0:22:09]}  hxg5 {[%clk 0:05:41]} 36. hxg5 {[%clk 0:17:44]}  Qh7 {[%clk 0:03:58]}
37. Qc3 {[%clk 0:13:46]}  Qh5 {[%clk 0:02:39]} 38. Qg3 {[%clk 0:11:18]}  Qd1+ {[%clk 0:01:28]} 39. Re1 {[%clk 0:11:20]}  Qd4 {[%clk 0:01:28]}
40. Qe5 {[%clk 0:03:06]}  Qg4+ {[%clk 0:01:28]} 41. Qg3 {[%clk 0:03:24]}  Qd4 {[%clk 0:01:40]} 42. Kg2 {[%clk 0:27:11]}  Qa4 {[%clk 0:25:44]}
43. Rh1 {[%clk 0:20:34]}  Qd4 {[%clk 0:19:52]} 44. Qh4 {[%clk 0:17:50]}  Qg7 {[%clk 0:19:42]} 45. Qh6 {[%clk 0:15:40]}  Rb8 {[%clk 0:16:49]}
46. Rh4 {[%clk 0:12:55]}  Re8 {[%clk 0:11:42]} 47. Rxe8+ {[%clk 0:12:00]}  Bxe8 {[%clk 0:12:10]} 48. Qxg7+ {[%clk 0:12:19]}  Kxg7 {[%clk 0:12:38]}
49. Rf4 {[%clk 0:12:33]}  a4 {[%clk 0:11:48]} 50. Kf3 {[%clk 0:12:30]}  Bd7 {[%clk 0:11:10]} 51. Ke3 {[%clk 0:12:43]}  Bb5 {[%clk 0:11:30]}
52. Rf6 {[%clk 0:12:47]}  Bc4 {[%clk 0:11:49]} 53. Kd4 {[%clk 0:13:13]}  Bb3 {[%clk 0:12:12]} 54. f4 {[%clk 0:13:21]}  Ba2 {[%clk 0:12:13]}
55. Ke5 {[%clk 0:13:18]}  Bb3 {[%clk 0:11:41]} 56. Rd6 {[%clk 0:13:43]}  Kf7 {[%clk 0:11:38]} 57. Rd7+ {[%clk 0:14:01]}  Ke8 {[%clk 0:11:54]}
58. Rg7 {[%clk 0:14:25]}  Bc2 {[%clk 0:12:16]} 59. Kxd5 {[%clk 0:14:50]}  Bf5 {[%clk 0:12:13]} 60. Ke5 {[%clk 0:15:13]} 1-0

[Event "2026 European Womens Championship"]
[Site "Batumi, GE"]
[Date "2026.06.01"]
[Round "7"]
[White "Diasamidze, Lulu"]
[Black "Mamedjarova, Zeinab"]
[Result "0-1"]
[Board "114"]
[TimeControl "5400+30"]
[WhiteFideId "13623818"]
[BlackFideId "13401521"]
[WhiteElo "1924"]
[BlackElo "2137"]
[BlackTitle "WGM"]
[WhiteClock "0:05:39"]
[BlackClock "0:11:21"]
[Variant "Standard"]

1. e4 {[%clk 1:30:59]}  d5 {[%clk 1:29:16]} 2. exd5 {[%clk 1:31:27]}  Nf6 {[%clk 1:29:04]} 3. Nf3 {[%clk 1:31:51]}  Nxd5 {[%clk 1:28:56]}
4. d4 {[%clk 1:30:17]}  Bg4 {[%clk 1:27:31]} 5. c4 {[%clk 1:23:51]}  Nb6 {[%clk 1:27:48]} 6. c5 {[%clk 1:22:50]}  Nd5 {[%clk 1:28:01]}
7. Qb3 {[%clk 1:22:03]}  Bc8 {[%clk 1:27:01]} 8. Bc4 {[%clk 1:22:06]}  e6 {[%clk 1:26:21]} 9. Nc3 {[%clk 1:15:07]}  Nxc3 {[%clk 1:25:03]}
10. Qxc3 {[%clk 1:13:42]}  Be7 {[%clk 1:24:47]} 11. O-O {[%clk 1:13:43]}  O-O {[%clk 1:25:01]} 12. b4 {[%clk 1:12:52]}  b6 {[%clk 1:24:14]}
13. Bf4 {[%clk 1:08:57]}  Bb7 {[%clk 1:20:34]} 14. Rad1 {[%clk 1:03:44]}  Bf6 {[%clk 1:15:21]} 15. Qb3 {[%clk 0:55:09]}  c6 {[%clk 0:47:45]}
16. a4 {[%clk 0:50:06]}  Na6 {[%clk 0:45:41]} 17. Ne5 {[%clk 0:40:37]}  Nc7 {[%clk 0:44:18]} 18. Ng4 {[%clk 0:39:51]}  Be7 {[%clk 0:43:20]}
19. Qg3 {[%clk 0:29:45]}  Nd5 {[%clk 0:43:21]} 20. Bxd5 {[%clk 0:26:46]}  cxd5 {[%clk 0:37:17]} 21. Bc7 {[%clk 0:24:33]}  Qe8 {[%clk 0:29:04]}
22. Qb3 {[%clk 0:15:43]}  bxc5 {[%clk 0:27:43]} 23. dxc5 {[%clk 0:15:34]}  a6 {[%clk 0:26:11]} 24. Be5 {[%clk 0:11:52]}  Bc6 {[%clk 0:25:25]}
25. Ra1 {[%clk 0:11:47]}  f6 {[%clk 0:25:03]} 26. Bc3 {[%clk 0:11:07]}  Kh8 {[%clk 0:22:49]} 27. Bd2 {[%clk 0:07:00]}  e5 {[%clk 0:20:43]}
28. f4 {[%clk 0:06:29]}  Qg6 {[%clk 0:20:10]} 29. Qg3 {[%clk 0:06:01]}  Bd7 {[%clk 0:15:56]} 30. Ne3 {[%clk 0:05:27]}  Qd3 {[%clk 0:15:52]}
31. Rfd1 {[%clk 0:05:35]}  d4 {[%clk 0:14:56]} 32. Nd5 {[%clk 0:05:51]}  Qxg3 {[%clk 0:14:51]} 33. hxg3 {[%clk 0:06:20]}  Bd8 {[%clk 0:15:05]}
34. b5 {[%clk 0:04:29]}  axb5 {[%clk 0:14:45]} 35. a5 {[%clk 0:04:31]}  Be6 {[%clk 0:11:35]} 36. Nb6 {[%clk 0:04:57]}  Ra7 {[%clk 0:09:19]}
37. Bb4 {[%clk 0:04:50]}  Bc7 {[%clk 0:08:13]} 38. fxe5 {[%clk 0:03:05]}  fxe5 {[%clk 0:07:18]} 39. c6 {[%clk 0:02:27]}  Rd8 {[%clk 0:06:12]}
40. Be7 {[%clk 0:02:23]}  Re8 {[%clk 0:00:40]} 41. Bc5 {[%clk 0:02:35]}  Ra6 {[%clk 0:29:58]} 42. Rdb1 {[%clk 0:19:50]}  Bc4 {[%clk 0:20:38]}
43. Kf2 {[%clk 0:18:25]}  h6 {[%clk 0:15:00]} 44. Rc1 {[%clk 0:17:37]}  Re6 {[%clk 0:14:13]} 45. Nxc4 {[%clk 0:09:43]}  bxc4 {[%clk 0:14:10]}
46. Rxc4 {[%clk 0:09:13]}  Rexc6 {[%clk 0:14:15]} 47. Kf3 {[%clk 0:04:41]}  Rxa5 {[%clk 0:12:46]} 48. Rac1 {[%clk 0:05:06]}  Bd6 {[%clk 0:10:55]}
49. Bxd6 {[%clk 0:05:12]}  Rxd6 {[%clk 0:11:20]} 50. Ke4 {[%clk 0:05:39]}  Rg6 {[%clk 0:11:21]} 51. Ra1 {[%clk 0:02:17]} 0-1

[Event "2026 European Womens Championship"]
[Site "Batumi, GE"]
[Date "2026.06.01"]
[Round "7"]
[White "Kalandadze, Mariam"]
[Black "Donghvani, Nia"]
[Result "1-0"]
[Board "115"]
[TimeControl "5400+30"]
[WhiteFideId "13621122"]
[BlackFideId "13614649"]
[WhiteElo "1892"]
[BlackElo "2117"]
[BlackTitle "WFM"]
[WhiteClock "0:45:33"]
[BlackClock "0:15:28"]
[Variant "Standard"]

1. d4 {[%clk 1:30:58]}  Nf6 {[%clk 1:30:52]} 2. c4 {[%clk 1:31:21]}  e6 {[%clk 1:31:18]} 3. Nf3 {[%clk 1:31:38]}  Bb4+ {[%clk 1:31:42]}
4. Bd2 {[%clk 1:32:02]}  Bxd2+ {[%clk 1:32:00]} 5. Qxd2 {[%clk 1:32:14]}  O-O {[%clk 1:32:17]} 6. g3 {[%clk 1:32:27]}  d5 {[%clk 1:32:18]}
7. Bg2 {[%clk 1:32:39]}  Nbd7 {[%clk 1:32:44]} 8. O-O {[%clk 1:32:32]}  c6 {[%clk 1:33:07]} 9. Nc3 {[%clk 1:30:24]}  dxc4 {[%clk 1:31:45]}
10. a4 {[%clk 1:28:08]}  e5 {[%clk 1:08:50]} 11. Rfd1 {[%clk 1:20:28]}  Qe7 {[%clk 1:02:23]} 12. d5 {[%clk 1:16:34]}  cxd5 {[%clk 0:58:43]}
13. Nxd5 {[%clk 1:16:58]}  Nxd5 {[%clk 0:58:22]} 14. Qxd5 {[%clk 1:17:14]}  e4 {[%clk 0:57:10]} 15. Nd4 {[%clk 1:06:29]}  e3 {[%clk 0:51:13]}
16. f4 {[%clk 1:04:22]}  Nb6 {[%clk 0:40:09]} 17. Qh5 {[%clk 0:56:10]}  a5 {[%clk 0:32:25]} 18. Qb5 {[%clk 0:49:48]}  Ra6 {[%clk 0:29:05]}
19. b3 {[%clk 0:43:16]}  Bd7 {[%clk 0:24:15]} 20. Bc6 {[%clk 0:40:19]}  Bxc6 {[%clk 0:06:53]} 21. Nxc6 {[%clk 0:40:36]}  Qe8 {[%clk 0:03:48]}
22. Nxa5 {[%clk 0:38:53]}  cxb3 {[%clk 0:04:07]} 23. Rdb1 {[%clk 0:32:27]}  Rxa5 {[%clk 0:02:50]} 24. Qxa5 {[%clk 0:29:34]}  Nc4 {[%clk 0:03:14]}
25. Qc3 {[%clk 0:29:38]}  b2 {[%clk 0:02:20]} 26. Qxc4 {[%clk 0:29:18]}  bxa1=Q {[%clk 0:02:37]} 27. Rxa1 {[%clk 0:29:41]}  Qd7 {[%clk 0:02:45]}
28. Qd3 {[%clk 0:24:23]}  Qe7 {[%clk 0:01:57]} 29. Ra3 {[%clk 0:23:30]}  Re8 {[%clk 0:02:23]} 30. Rc3 {[%clk 0:22:53]}  Qb4 {[%clk 0:01:06]}
31. Qb5 {[%clk 0:22:49]}  Qe4 {[%clk 0:01:03]} 32. Rc4 {[%clk 0:19:26]}  Qe6 {[%clk 0:01:27]} 33. Rc5 {[%clk 0:19:33]}  f6 {[%clk 0:01:01]}
34. Qc4 {[%clk 0:17:52]}  Qxc4 {[%clk 0:00:46]} 35. Rxc4 {[%clk 0:18:18]}  f5 {[%clk 0:00:41]} 36. Kg2 {[%clk 0:13:55]}  Re4 {[%clk 0:00:41]}
37. Rxe4 {[%clk 0:13:55]}  fxe4 {[%clk 0:01:11]} 38. Kh3 {[%clk 0:14:19]}  Kf7 {[%clk 0:01:10]} 39. Kg4 {[%clk 0:14:44]}  Ke6 {[%clk 0:00:50]}
40. f5+ {[%clk 0:14:31]}  Ke5 {[%clk 0:00:59]} 41. a5 {[%clk 0:13:14]}  h6 {[%clk 0:14:48]} 42. h3 {[%clk 0:42:16]}  Kd5 {[%clk 0:13:12]}
43. Kf4 {[%clk 0:42:35]}  Kc5 {[%clk 0:13:19]} 44. Kxe4 {[%clk 0:42:56]}  Kb5 {[%clk 0:13:48]} 45. Kxe3 {[%clk 0:43:18]}  Kxa5 {[%clk 0:14:18]}
46. Kd4 {[%clk 0:43:26]}  b5 {[%clk 0:14:33]} 47. e4 {[%clk 0:43:52]}  b4 {[%clk 0:14:39]} 48. e5 {[%clk 0:44:17]}  Ka4 {[%clk 0:14:10]}
49. e6 {[%clk 0:44:36]}  b3 {[%clk 0:14:38]} 50. e7 {[%clk 0:45:02]}  b2 {[%clk 0:15:00]} 51. e8=Q+ {[%clk 0:45:27]}  Ka3 {[%clk 0:15:28]}
52. Kc3 {[%clk 0:45:33]} 1-0

[Event "2026 European Womens Championship"]
[Site "Batumi, GE"]
[Date "2026.06.01"]
[Round "7"]
[White "Saltkhutsishvili, Sara"]
[Black "Lomaia, Diana"]
[Result "0-1"]
[Board "116"]
[TimeControl "5400+30"]
[WhiteFideId "13636995"]
[BlackFideId "13612476"]
[WhiteElo "1763"]
[BlackElo "2110"]
[BlackTitle "WFM"]
[WhiteClock "0:01:00"]
[BlackClock "0:00:48"]
[Variant "Standard"]

1. e4 {[%clk 1:24:21]}  e5 {[%clk 1:30:54]} 2. Nf3 {[%clk 1:24:50]}  Nc6 {[%clk 1:31:18]} 3. Bc4 {[%clk 1:25:12]}  Nf6 {[%clk 1:31:26]}
4. d3 {[%clk 1:25:35]}  Be7 {[%clk 1:30:18]} 5. O-O {[%clk 1:26:01]}  O-O {[%clk 1:30:15]} 6. c3 {[%clk 1:26:29]}  d5 {[%clk 1:30:06]}
7. exd5 {[%clk 1:26:56]}  Nxd5 {[%clk 1:30:16]} 8. Re1 {[%clk 1:27:24]}  Bg4 {[%clk 1:28:29]} 9. h3 {[%clk 1:27:49]}  Bh5 {[%clk 1:27:52]}
10. Nbd2 {[%clk 1:28:17]}  Nb6 {[%clk 1:23:08]} 11. Bb3 {[%clk 1:28:36]}  Kh8 {[%clk 1:19:59]} 12. Ne4 {[%clk 1:24:19]}  f6 {[%clk 1:15:14]}
13. Ng3 {[%clk 1:17:12]}  Bg6 {[%clk 1:13:48]} 14. Bc2 {[%clk 1:17:03]}  f5 {[%clk 1:02:10]} 15. b4 {[%clk 1:05:05]}  a6 {[%clk 0:59:56]}
16. Bb2 {[%clk 1:03:04]}  Bf6 {[%clk 0:58:30]} 17. Rb1 {[%clk 0:57:34]}  Nd5 {[%clk 0:47:40]} 18. Qd2 {[%clk 0:53:08]}  Re8 {[%clk 0:44:35]}
19. a4 {[%clk 0:48:08]}  b5 {[%clk 0:38:41]} 20. Nf1 {[%clk 0:32:51]}  Qd6 {[%clk 0:32:05]} 21. a5 {[%clk 0:23:13]}  Rad8 {[%clk 0:30:27]}
22. Red1 {[%clk 0:19:17]}  Qf8 {[%clk 0:20:35]} 23. Qc1 {[%clk 0:13:10]}  e4 {[%clk 0:15:23]} 24. dxe4 {[%clk 0:09:16]}  fxe4 {[%clk 0:15:45]}
25. Nd4 {[%clk 0:08:53]}  Nxc3 {[%clk 0:12:10]} 26. Bxc3 {[%clk 0:08:16]}  Bxd4 {[%clk 0:11:56]} 27. Be1 {[%clk 0:06:43]}  Ne5 {[%clk 0:10:49]}
28. Ne3 {[%clk 0:06:01]}  Qf6 {[%clk 0:05:50]} 29. Rxd4 {[%clk 0:03:52]}  Rxd4 {[%clk 0:05:50]} 30. Bc3 {[%clk 0:04:15]}  Rdd8 {[%clk 0:04:03]}
31. Ng4 {[%clk 0:04:00]}  Nf3+ {[%clk 0:04:09]} 32. gxf3 {[%clk 0:04:14]}  Qxc3 {[%clk 0:04:28]} 33. Ne3 {[%clk 0:04:00]}  Qf6 {[%clk 0:02:08]}
34. Bxe4 {[%clk 0:03:12]}  Bxe4 {[%clk 0:02:24]} 35. fxe4 {[%clk 0:03:39]}  Qg6+ {[%clk 0:02:22]} 36. Kh2 {[%clk 0:03:28]}  Qxe4 {[%clk 0:02:46]}
37. Rb2 {[%clk 0:03:32]}  Qf4+ {[%clk 0:02:55]} 38. Kg1 {[%clk 0:03:12]}  Re6 {[%clk 0:02:51]} 39. Rd2 {[%clk 0:02:28]}  Rg6+ {[%clk 0:01:51]}
40. Kf1 {[%clk 0:02:50]}  Rf8 {[%clk 0:01:40]} 41. Ng4 {[%clk 0:01:00]}  h5 {[%clk 0:00:48]} 0-1

[Event "2026 European Womens Championship"]
[Site "Batumi, GE"]
[Date "2026.06.01"]
[Round "7"]
[White "Akat, Elifnaz"]
[Black "Kalyoncu, Beren"]
[Result "1/2-1/2"]
[Board "117"]
[TimeControl "5400+30"]
[WhiteFideId "34560556"]
[BlackFideId "51608383"]
[WhiteElo "2061"]
[BlackElo "1840"]
[WhiteTitle "WFM"]
[BlackTitle "WCM"]
[WhiteClock "0:03:18"]
[BlackClock "0:02:27"]
[Variant "Standard"]

1. e4 {[%clk 1:30:59]}  e6 {[%clk 1:29:29]} 2. d4 {[%clk 1:31:27]}  d5 {[%clk 1:29:52]} 3. Nd2 {[%clk 1:31:54]}  c5 {[%clk 1:29:57]}
4. Ngf3 {[%clk 1:32:22]}  cxd4 {[%clk 1:29:46]} 5. Nxd4 {[%clk 1:30:43]}  Nf6 {[%clk 1:29:43]} 6. e5 {[%clk 1:28:23]}  Nfd7 {[%clk 1:29:49]}
7. f4 {[%clk 1:27:58]}  Nxe5 {[%clk 1:27:33]} 8. Nxe6 {[%clk 1:23:50]}  Bxe6 {[%clk 1:21:29]} 9. fxe5 {[%clk 1:24:02]}  Nc6 {[%clk 1:12:09]}
10. Nf3 {[%clk 1:10:18]}  Bc5 {[%clk 0:44:06]} 11. Bd3 {[%clk 1:04:49]}  h6 {[%clk 0:43:23]} 12. c3 {[%clk 1:02:35]}  Qb6 {[%clk 0:40:56]}
13. Rf1 {[%clk 0:53:47]}  a5 {[%clk 0:39:27]} 14. Qa4 {[%clk 0:52:00]}  O-O-O {[%clk 0:36:45]} 15. Qb5 {[%clk 0:43:58]}  g5 {[%clk 0:33:09]}
16. h3 {[%clk 0:40:18]}  Rde8 {[%clk 0:30:58]} 17. Bd2 {[%clk 0:35:22]}  f6 {[%clk 0:27:20]} 18. b4 {[%clk 0:30:03]}  Qxb5 {[%clk 0:19:07]}
19. Bxb5 {[%clk 0:30:27]}  Bb6 {[%clk 0:19:04]} 20. bxa5 {[%clk 0:29:38]}  Bxa5 {[%clk 0:18:27]} 21. O-O-O {[%clk 0:23:57]}  fxe5 {[%clk 0:17:13]}
22. Bxc6 {[%clk 0:23:39]}  bxc6 {[%clk 0:17:40]} 23. Nxe5 {[%clk 0:23:57]}  Kc7 {[%clk 0:16:43]} 24. Rf6 {[%clk 0:22:40]}  Kd6 {[%clk 0:13:20]}
25. Re1 {[%clk 0:21:36]}  Rh7 {[%clk 0:10:02]} 26. h4 {[%clk 0:18:30]}  Bd8 {[%clk 0:09:36]} 27. Rg6 {[%clk 0:18:04]}  c5 {[%clk 0:05:41]}
28. Nf3 {[%clk 0:15:22]}  Kd7 {[%clk 0:04:00]} 29. Ne5+ {[%clk 0:13:38]}  Kc8 {[%clk 0:03:13]} 30. Nf3 {[%clk 0:04:44]}  Bd7 {[%clk 0:02:15]}
31. Rd6 {[%clk 0:03:20]}  Re4 {[%clk 0:01:57]} 32. Re2 {[%clk 0:03:20]}  Rxe2 {[%clk 0:02:27]} 33. Ne1 {[%clk 0:03:18]} 1/2-1/2

[Event "2026 European Womens Championship"]
[Site "Batumi, GE"]
[Date "2026.06.01"]
[Round "7"]
[White "Dimitrijevic, Aleksandra"]
[Black "Gharibyan, Mane"]
[Result "1-0"]
[Board "118"]
[TimeControl "5400+30"]
[WhiteFideId "929239"]
[BlackFideId "13306430"]
[WhiteElo "2059"]
[BlackElo "1776"]
[WhiteTitle "WGM"]
[WhiteClock "0:12:50"]
[BlackClock "0:00:35"]
[Variant "Standard"]

1. d4 {[%clk 1:24:02]}  Nf6 {[%clk 1:30:52]} 2. c4 {[%clk 1:24:19]}  e6 {[%clk 1:31:18]} 3. g3 {[%clk 1:24:44]}  c5 {[%clk 1:31:27]}
4. d5 {[%clk 1:25:08]}  exd5 {[%clk 1:31:52]} 5. cxd5 {[%clk 1:25:32]}  d6 {[%clk 1:32:20]} 6. Nc3 {[%clk 1:25:37]}  g6 {[%clk 1:31:45]}
7. Bg2 {[%clk 1:24:09]}  Bg7 {[%clk 1:32:11]} 8. Nf3 {[%clk 1:24:02]}  O-O {[%clk 1:32:35]} 9. O-O {[%clk 1:20:56]}  Re8 {[%clk 1:31:42]}
10. Nd2 {[%clk 1:19:33]}  Nbd7 {[%clk 1:27:06]} 11. a4 {[%clk 1:13:10]}  a6 {[%clk 1:21:15]} 12. h3 {[%clk 1:07:04]}  Nh5 {[%clk 1:12:20]}
13. Kh2 {[%clk 1:00:11]}  Rb8 {[%clk 1:00:22]} 14. a5 {[%clk 0:56:52]}  b5 {[%clk 0:57:25]} 15. axb6 {[%clk 0:56:41]}  Nxb6 {[%clk 0:55:57]}
16. e4 {[%clk 0:54:41]}  a5 {[%clk 0:31:22]} 17. Re1 {[%clk 0:40:16]}  Bd7 {[%clk 0:25:49]} 18. Bf1 {[%clk 0:37:04]}  Bd4 {[%clk 0:22:23]}
19. Kg2 {[%clk 0:32:42]}  Qc8 {[%clk 0:12:05]} 20. g4 {[%clk 0:27:04]}  Nf4+ {[%clk 0:11:34]} 21. Kg1 {[%clk 0:27:19]}  h5 {[%clk 0:07:04]}
22. Nf3 {[%clk 0:24:26]}  Bxc3 {[%clk 0:05:57]} 23. bxc3 {[%clk 0:24:45]}  Nxh3+ {[%clk 0:06:18]} 24. Bxh3 {[%clk 0:23:03]}  hxg4 {[%clk 0:06:45]}
25. Ng5 {[%clk 0:21:47]}  gxh3 {[%clk 0:04:27]} 26. Qf3 {[%clk 0:22:11]}  Rf8 {[%clk 0:01:36]} 27. Qf6 {[%clk 0:21:17]}  Nc4 {[%clk 0:01:23]}
28. Ne6 {[%clk 0:18:16]}  fxe6 {[%clk 0:01:20]} 29. Qxg6+ {[%clk 0:18:38]}  Kh8 {[%clk 0:01:47]} 30. Qh5+ {[%clk 0:12:31]}  Kg8 {[%clk 0:01:56]}
31. Bh6 {[%clk 0:12:26]}  Rf7 {[%clk 0:01:31]} 32. Kh1 {[%clk 0:12:18]}  e5 {[%clk 0:00:40]} 33. Rg1+ {[%clk 0:11:14]}  Bg4 {[%clk 0:00:46]}
34. Rxg4+ {[%clk 0:11:37]}  Qxg4 {[%clk 0:01:12]} 35. Qxg4+ {[%clk 0:11:59]}  Kh8 {[%clk 0:01:08]} 36. Rg1 {[%clk 0:12:04]}  h2 {[%clk 0:00:34]}
37. Bg7+ {[%clk 0:12:27]}  Kg8 {[%clk 0:00:35]} 38. Bf6+ {[%clk 0:12:50]} 1-0